bitfinex/quotes_SOLUSD_20251126
["timestamp","ask_amount","ask_price","bid_price","bid_amount"]
[1764184447775,3.1,143.84,143.81,0.69]
[1764184448763,2.6,143.84,143.81,0.69]
[1764184448993,2.6,143.84,143.82,6.95313586]
[1764184449965,2.6,143.84,143.81,0.69]
[1764184450162,2.6,143.84,143.81,7.64353132]
[1764184450588,2.6,143.84,143.8,6.95398127]
[1764184450789,14.26373686,143.84,143.8,7.64398127]
[1764184451486,11.66373686,143.83,143.79,6.9544278]
[1764184451666,11.66373686,143.82,143.78,16.998864]
[1764184451866,18.61832659,143.79,143.77,1.0]
[1764184452061,14.76373686,143.78,143.77,1.0]
[1764184452693,3.1,143.78,143.77,7.955554]
[1764184452886,11.66373686,143.82,143.77,37.69817588]
[1764184453075,3.1,143.81,143.78,12.35373686]
[1764184453286,3.1,143.81,143.78,0.69]
[1764184453470,3.1,143.81,143.77,53.31703988]
[1764184453674,3.1,143.81,143.79,0.69]
[1764184454466,3.1,143.81,143.8,6.95410292]
[1764184456488,3.1,143.81,143.79,6.95458654]
[1764184456697,3.1,143.81,143.79,7.64458654]
[1764184457696,3.1,143.81,143.8,0.69]
[1764184458503,11.66373686,143.83,143.8,7.64397822]
[1764184458802,3.1,143.81,143.8,7.64397822]
[1764184459305,8.80994492,143.85,143.8,19.30771508]
[1764184459502,3.1,143.84,143.81,12.35373686]
[1764184460002,3.1,143.84,143.82,0.69]
[1764184460678,3.1,143.84,143.82,7.64313027]
[1764184464117,3.1,143.84,143.82,0.69]
[1764184464332,10.05251744,143.84,143.78,6.95503765]
[1764184464495,11.66373686,143.81,143.78,0.69]
[1764184464688,3.1,143.8,143.78,7.54821142]
[1764184464893,3.1,143.8,143.79,0.69]
[1764184465998,3.1,143.8,143.79,8.23821142]
[1764184466412,3.1,143.8,143.79,15.19279796]
[1764184468818,3.1,143.8,143.77,24.26413854]
[1764184469112,18.27239078,143.8,143.77,1.0]
[1764184470209,10.05417936,143.8,143.77,1.69]
[1764184470526,10.64821142,143.8,143.77,7.95555179]
[1764184470815,3.1,143.8,143.77,8.64552677]
[1764184471000,3.1,143.8,143.78,0.69]
[1764184471202,3.1,143.8,143.77,8.64552677]
[1764184471523,3.1,143.8,143.78,0.69]
[1764184471709,3.1,143.8,143.77,8.64552677]
[1764184472508,17.60232023,143.8,143.77,1.69]
[1764184472717,10.05410881,143.8,143.77,1.0]
[1764184472918,3.1,143.8,143.77,1.69]
[1764184473228,0.67,143.79,143.77,1.0]
[1764184473520,17.60237122,143.8,143.77,1.0]
[1764184473521,18.27237122,143.8,143.77,1.0]
[1764184474322,11.31821142,143.8,143.77,1.0]
[1764184475432,3.1,143.8,143.77,8.64551475]
[1764184475918,3.1,143.8,143.77,16.19372617]
[1764184476107,3.1,143.8,143.78,0.69]
[1764184477125,8.80994492,143.81,143.77,15.50372617]
[1764184477307,8.80994492,143.81,143.77,16.19372617]
[1764184477623,7.54821142,143.81,143.77,16.19372617]
[1764184478010,8.21821142,143.81,143.77,8.64551475]
[1764184478212,15.17186445,143.81,143.77,8.64551475]
[1764184478416,3.1,143.8,143.77,8.64552276]
[1764184478735,15.17186445,143.81,143.77,1.69]
[1764184478906,3.1,143.79,143.77,1.69]
[1764184479503,3.1,143.79,143.77,8.64540861]
[1764184482310,3.1,143.79,143.78,0.69]
[1764184483429,3.1,143.79,143.78,7.64507024]
[1764184486133,15.6549826,143.82,143.78,7.64507024]
[1764184486310,3.1,143.81,143.78,7.64507024]
[1764184486834,0.86914198,143.82,143.78,14.50328166]
[1764184487008,3.1,143.81,143.79,8.23821142]
[1764184487325,10.64821142,143.81,143.78,0.69]
[1764184487533,3.79,143.81,143.77,31.81242574]
[1764184487707,3.1,143.81,143.78,0.69]
[1764184487911,3.1,143.81,143.78,8.23821142]
[1764184488638,3.1,143.81,143.79,7.64458654]
[1764184489330,3.1,143.81,143.79,6.95458654]
[1764184489539,10.92310402,143.84,143.8,0.69]
[1764184489832,3.1,143.83,143.8,0.69]
[1764184490634,11.33609302,143.83,143.8,6.95402975]
[1764184490934,10.64609302,143.83,143.8,7.64402975]
[1764184491437,17.59893104,143.83,143.8,0.69]
[1764184491933,10.64609302,143.83,143.8,0.69]
[1764184492728,10.64609302,143.83,143.8,7.64401724]
[1764184493126,3.1,143.83,143.8,7.64401724]
[1764184493521,10.64609302,143.83,143.8,7.64401724]
[1764184494436,17.59883164,143.83,143.8,0.69]
[1764184495014,3.1,143.82,143.8,0.69]
[1764184496538,3.1,143.82,143.8,7.6440725]
[1764184499442,3.1,143.82,143.8,15.19016552]
[1764184499955,3.1,143.82,143.8,7.6440725]
[1764184500321,9.67890564,143.85,143.81,8.23609302]
[1764184500721,9.09426806,143.86,143.82,8.23609302]
[1764184500940,3.1,143.85,143.83,7.54609302]
[1764184501222,3.1,143.85,143.83,8.23609302]
[1764184501842,7.8197612,143.87,143.84,0.69]
[1764184502032,0.86871916,143.89,143.86,7.54609302]
[1764184502345,3.1,143.88,143.84,8.23609302]
[1764184502552,3.1,143.88,143.85,7.54609302]
[1764184502748,3.1,143.88,143.85,8.23609302]
[1764184502951,0.86865879,143.9,143.86,0.69]
[1764184503247,3.1,143.89,143.87,7.54609302]
[1764184503542,3.1,143.89,143.87,14.49638065]
[1764184503933,9.10445008,143.95,143.88,8.23609302]
[1764184504133,3.1,143.94,143.9,7.54609302]
[1764184504529,3.79,143.94,143.9,8.23609302]
[1764184504735,11.33609302,143.94,143.9,0.69]
[1764184505129,3.1,143.94,143.9,8.23609302]
[1764184505342,3.79,143.94,143.9,8.23609302]
[1764184505542,10.73740091,143.94,143.9,8.23609302]
[1764184506256,10.73740091,143.94,143.9,15.18523356]
[1764184506459,18.28349393,143.94,143.9,0.69]
[1764184506635,32.43640536,143.96,143.91,0.69]
[1764184506963,3.1,143.95,143.92,7.54609302]
[1764184507159,3.1,143.95,143.92,8.23609302]
[1764184507458,3.1,143.95,143.93,0.69]
[1764184508238,3.1,143.95,143.93,7.63771801]
[1764184509270,3.1,143.95,143.93,0.69]
[1764184509473,16.68,143.96,143.94,0.69]
[1764184509645,3.1,143.95,143.94,0.69]
[1764184509841,3.1,143.95,143.92,14.49421445]
[1764184510045,3.1,143.95,143.93,0.69]
[1764184510564,0.2,143.98,143.94,23.85495702]
[1764184510770,0.2,143.98,143.97,7.54609302]
[1764184511151,3.3,143.98,143.97,24.54495702]
[1764184511665,3.3,143.98,143.93,6.94769702]
[1764184511850,10.84609302,143.98,143.94,16.998864]
[1764184512261,10.84609302,143.98,143.95,0.69]
[1764184512566,3.3,143.98,143.95,0.69]
[1764184512969,6.11131559,143.98,143.94,16.308864]
[1764184513158,6.81131559,143.98,143.94,16.998864]
[1764184513554,6.11131559,143.98,143.95,0.69]
[1764184513771,6.11131559,143.98,143.95,7.63676482]
[1764184514176,6.11131559,143.98,143.95,0.69]
[1764184514359,6.11131559,143.98,143.95,0.71]
[1764184515358,6.11131559,143.98,143.95,7.65667461]
[1764184517173,3.3,143.98,143.95,6.94667461]
[1764184517359,3.3,143.98,143.96,0.71]
[1764184518377,0.2,143.98,143.97,2.81131559]
[1764184518581,3.3,143.98,143.96,10.46756807]
[1764184518886,3.3,143.98,143.97,0.71]
[1764184519059,0.2,143.99,143.98,16.308864]
[1764184519261,0.2,143.99,143.98,19.12017959]
[1764184519579,0.2,143.99,143.98,26.77558867]
[1764184519877,6.77131559,143.99,143.94,20.05049743]
[1764184520182,2.81131559,143.97,143.94,20.05049743]
[1764184520379,3.1,143.96,143.94,26.99778622]
[1764184520581,5.91131559,143.96,143.92,0.71]
[1764184520876,5.91131559,143.96,143.92,16.308864]
[1764184521074,5.91131559,143.96,143.93,0.71]
[1764184521285,5.91131559,143.96,143.94,6.94733916]
[1764184521589,1.06811584,143.99,143.95,2.81131559]
[1764184521779,3.1,143.98,143.96,2.81131559]
[1764184521963,3.1,143.98,143.96,3.52131559]
[1764184522165,0.2,143.99,143.97,0.71]
[1764184522486,3.1,143.98,143.97,0.71]
[1764184523396,3.1,143.98,143.97,7.6558915]
[1764184528874,3.1,143.98,143.97,0.71]
[1764184529076,3.1,143.98,143.97,7.6558915]
[1764184531197,3.1,143.98,143.97,0.71]
[1764184531383,3.1,143.98,143.97,7.6558915]
[1764184532525,8.15145391,143.98,143.92,61.5]
[1764184532683,4.39145391,143.95,143.91,7.65870868]
[1764184533004,3.1,143.94,143.91,23.96757268]
[1764184533301,3.1,143.94,143.91,41.33954127]
[1764184533486,5.05145391,143.96,143.91,45.02099518]
[1764184533685,7.49145391,143.95,143.91,40.62954127]
[1764184533885,3.76,143.95,143.91,25.03067727]
[1764184534080,8.15145391,143.95,143.91,7.65870868]
[1764184534285,8.15145391,143.95,143.91,6.94870868]
[1764184534602,8.15145391,143.95,143.92,0.71]
[1764184534806,8.15145391,143.95,143.91,7.65870868]
[1764184535304,8.15145391,143.95,143.86,147.36364255]
[1764184535305,4.39145391,143.92,143.87,0.71]
[1764184535605,3.1,143.91,143.87,25.03751788]
[1764184535790,3.1,143.91,143.88,4.39145391]
[1764184535992,3.1,143.91,143.88,5.10145391]
[1764184536196,3.1,143.9,143.89,0.71]
[1764184536415,3.1,143.9,143.87,45.02783579]
[1764184536610,5.05145391,143.92,143.88,0.71]
[1764184536806,4.39145391,143.92,143.88,0.71]
[1764184537037,3.1,143.91,143.88,0.71]
[1764184537213,5.05145391,143.92,143.89,6.94975328]
[1764184537612,7.49145391,143.91,143.89,6.94975328]
[1764184537814,3.1,143.9,143.89,68.44975328]
[1764184538416,3.1,143.9,143.89,69.15975328]
[1764184540336,3.1,143.9,143.89,68.44975328]
[1764184540532,4.39145391,143.92,143.89,68.44975328]
[1764184540732,3.1,143.91,143.89,68.44975328]
[1764184542138,4.39145391,143.92,143.89,68.44975328]
[1764184542345,3.1,143.91,143.9,0.71]
[1764184542521,11.33939593,143.93,143.9,0.71]
[1764184542729,0.94432314,143.95,143.9,12.05068044]
[1764184543035,3.1,143.94,143.9,73.55068044]
[1764184543343,3.1,143.94,143.91,0.71]
[1764184544011,3.1,143.94,143.92,6.94830461]
[1764184544637,1.06811584,143.99,143.93,21.42031791]
[1764184544836,1.06811584,143.99,143.95,4.39145391]
[1764184544837,3.1,143.98,143.95,4.39145391]
[1764184545143,3.1,143.98,143.94,5.11145391]
[1764184545520,0.67,143.97,143.93,16.308864]
[1764184545711,0.67,143.97,143.93,21.42031791]
[1764184545910,0.67,143.97,143.94,7.66688913]
[1764184546134,5.06145391,143.97,143.94,6.94688913]
[1764184546638,4.39145391,143.97,143.93,23.25660163]
[1764184546820,4.39145391,143.97,143.88,150.74505861]
[1764184546821,4.39145391,143.95,143.91,23.2576339]
[1764184547025,3.1,143.94,143.91,23.2576339]
[1764184547337,3.1,143.94,143.91,23.9776339]
[1764184548322,3.1,143.94,143.92,0.72]
[1764184550348,3.1,143.94,143.92,6.94817993]
[1764184550562,5.06145391,143.93,143.91,77.808864]
[1764184550843,0.67,143.93,143.91,84.75757239]
[1764184551027,8.16145391,143.94,143.91,84.75757239]
[1764184551755,3.1,143.94,143.91,85.47757239]
[1764184551954,3.1,143.93,143.91,89.8690263]
[1764184552457,3.1,143.93,143.91,85.47757239]
[1764184553455,0.67,143.92,143.91,77.808864]
[1764184553660,0.67,143.92,143.91,16.308864]
[1764184553836,0.67,143.92,143.91,23.25765143]
[1764184554150,7.49145391,143.93,143.91,23.25765143]
[1764184554744,3.1,143.92,143.91,23.25765143]
[1764184555743,3.1,143.92,143.91,23.97765143]
[1764184557040,3.1,143.92,143.91,28.36910534]
[1764184557351,3.1,143.92,143.91,45.74107393]
[1764184557553,3.1,143.92,143.91,23.97765143]
[1764184558856,3.1,143.92,143.91,28.36910534]
[1764184559165,3.1,143.92,143.91,89.86910534]
[1764184559747,3.1,143.92,143.91,107.24107393]
[1764184562370,3.1,143.92,143.91,102.12962002]
[1764184562580,3.1,143.92,143.91,84.75765143]
[1764184562766,3.1,143.92,143.91,68.44878743]
[1764184563769,8.16145391,143.92,143.86,5.11145391]
[1764184563952,4.39145391,143.9,143.87,6.95053006]
[1764184564270,4.39145391,143.88,143.82,5.11145391]
[1764184564460,4.39145391,143.83,143.77,1.72]
[1764184564662,4.39145391,143.8,143.77,1.0]
[1764184564848,4.39145391,143.79,143.77,1.0]
[1764184565045,3.1,143.78,143.77,1.0]
[1764184565758,3.1,143.78,143.77,7.955554]
[1764184565958,3.1,143.78,143.77,29.37587191]
[1764184566259,8.80994492,143.85,143.8,16.308864]
[1764184566466,3.1,143.84,143.8,20.70031791]
[1764184566670,3.1,143.84,143.81,0.69]
[1764184567192,8.16145391,143.84,143.8,16.308864]
[1764184567360,0.67,143.87,143.83,4.39145391]
[1764184567559,3.1,143.86,143.83,4.39145391]
[1764184567986,3.1,143.86,143.85,4.39145391]
[1764184568478,3.1,143.86,143.83,16.308864]
[1764184568660,3.1,143.86,143.85,11.66964533]
[1764184569073,3.1,143.86,143.85,12.35964533]
[1764184569481,3.1,143.86,143.85,19.31133111]
[1764184570370,12.33964533,143.9,143.85,19.31133111]
[1764184570577,3.77,143.89,143.86,11.66964533]
[1764184571465,3.77,143.89,143.86,18.62083342]
[1764184571866,3.1,143.89,143.87,11.66964533]
[1764184572060,3.1,143.88,143.87,11.66964533]
[1764184572373,3.1,143.88,143.86,19.31083342]
[1764184572773,3.1,143.88,143.84,6.95176423]
[1764184572987,3.1,143.88,143.84,19.31140956]
[1764184573278,3.1,143.88,143.85,12.35964533]
[1764184573482,3.1,143.88,143.86,6.95120255]
[1764184573856,3.1,143.88,143.86,18.62084788]
[1764184574060,3.1,143.88,143.86,19.31084788]
[1764184574270,3.1,143.88,143.86,18.62084788]
[1764184574471,3.82,143.88,143.85,6.95155669]
[1764184574688,3.1,143.87,143.85,6.95155669]
[1764184574987,3.1,143.87,143.85,68.45155669]
[1764184575561,3.1,143.87,143.85,61.5]
[1764184575766,3.82,143.87,143.85,61.5]
[1764184575969,3.1,143.87,143.85,68.45153453]
[1764184578006,3.1,143.87,143.85,61.5]
[1764184578303,3.82,143.87,143.85,61.5]
[1764184578497,0.72,143.86,143.85,61.5]
[1764184578803,3.1,143.87,143.85,62.19]
[1764184579104,3.82,143.86,143.85,61.5]
[1764184580103,3.82,143.86,143.82,11.66964533]
[1764184580104,9.09426806,143.85,143.8,61.5]
[1764184580391,11.66964533,143.84,143.8,61.5]
[1764184580589,12.38964533,143.84,143.8,61.5]
[1764184580777,3.1,143.83,143.8,61.5]
[1764184581180,3.1,143.83,143.8,68.45409188]
[1764184581405,3.1,143.83,143.8,80.12373721]
[1764184581787,0.72,143.82,143.79,61.5]
[1764184582040,6.95458654,143.79,143.77,1.0]
[1764184582316,14.76964533,143.78,143.77,1.0]
[1764184582615,15.48964533,143.78,143.77,1.0]
[1764184583194,24.58391339,143.78,143.77,1.0]
[1764184584217,47.84784763,143.78,143.77,1.0]
[1764184585214,9.09426806,143.77,143.74,0.1]
[1764184585395,9.81426806,143.77,143.74,0.1]
[1764184585599,11.66964533,143.75,143.74,0.1]
[1764184585918,14.76964533,143.75,143.74,0.1]
[1764184586116,31.54043512,143.75,143.74,0.1]
[1764184586492,27.42733259,143.75,143.74,0.1]
[1764184586689,24.32733259,143.75,143.74,0.1]
[1764184586894,27.42733259,143.75,143.74,0.1]
[1764184587319,24.32733259,143.75,143.74,0.1]
[1764184587498,27.42733259,143.75,143.74,0.1]
[1764184588019,19.87078979,143.75,143.74,0.1]
[1764184588322,27.42733259,143.75,143.74,0.1]
[1764184590225,16.77078979,143.75,143.74,0.1]
[1764184590533,27.42733259,143.75,143.74,0.1]
[1764184591403,7.5565428,143.77,143.74,0.1]
[1764184591612,7.5565428,143.75,143.74,0.1]
[1764184592637,10.6565428,143.76,143.74,0.1]
[1764184592813,17.37081086,143.75,143.74,0.1]
[1764184593336,9.09426806,143.75,143.74,0.1]
[1764184593498,3.1,143.75,143.74,0.1]
[1764184593699,3.1,143.75,143.74,0.79]
[1764184594008,3.1,143.75,143.74,0.1]
[1764184594199,3.1,143.75,143.74,0.79]
[1764184594803,7.5565428,143.81,143.74,15.3035485]
[1764184595023,10.6565428,143.8,143.75,8.2465428]
[1764184595402,10.6565428,143.8,143.76,0.69]
[1764184596113,17.61064961,143.8,143.76,7.6458736]
[1764184596315,17.61067334,143.8,143.76,7.6458736]
[1764184596526,7.5565428,143.79,143.76,7.6458736]
[1764184596715,7.5565428,143.79,143.74,25.04905706]
[1764184596716,7.5565428,143.79,143.75,6.95637034]
[1764184596920,7.5565428,143.78,143.74,0.79]
[1764184597134,3.1,143.77,143.75,0.69]
[1764184597457,16.36648772,143.79,143.75,0.69]
[1764184597630,3.1,143.78,143.75,0.69]
[1764184597823,3.1,143.78,143.75,8.2465428]
[1764184598018,3.1,143.78,143.75,0.69]
[1764184598237,3.1,143.78,143.76,0.69]
[1764184599844,0.86920241,143.81,143.77,16.308864]
[1764184600047,11.52580566,143.8,143.77,0.69]
[1764184600251,3.96926286,143.8,143.75,23.9552001]
[1764184600547,7.5565428,143.78,143.75,23.9552001]
[1764184600741,3.1,143.77,143.76,0.69]
[1764184601545,3.1,143.77,143.75,6.9563361]
[1764184601746,3.1,143.77,143.75,7.6463361]
[1764184602747,8.71018925,143.79,143.75,7.6463361]
[1764184602950,3.1,143.76,143.75,7.6463361]
[1764184603146,3.1,143.76,143.75,6.9563361]
[1764184603647,3.1,143.76,143.75,14.5128789]
[1764184603845,3.1,143.76,143.75,15.2028789]
[1764184605236,3.1,143.76,143.75,7.6463361]
[1764184606670,3.1,143.76,143.75,69.1463361]
[1764184607129,3.1,143.76,143.75,76.7028789]
[1764184607446,3.1,143.76,143.75,69.1463361]
[1764184607687,3.1,143.76,143.75,68.45652173]
[1764184607957,3.1,143.76,143.75,61.5]
[1764184608454,7.5565428,143.78,143.75,69.11652173]
[1764184608642,3.1,143.77,143.76,0.66]
[1764184608849,3.1,143.77,143.76,7.61583199]
[1764184609259,3.1,143.77,143.76,7.36583199]
[1764184612789,3.1,143.77,143.76,89.07432336]
[1764184613565,3.6874179,143.84,143.76,105.38318736]
[1764184613766,3.1,143.83,143.79,2.81839677]
[1764184614189,3.1,143.83,143.8,0.66]
[1764184615067,3.1,143.83,143.81,6.95361935]
[1764184615273,0.71,143.82,143.78,0.66]
[1764184615701,0.86902113,143.84,143.81,23.85371875]
[1764184615998,8.52654882,143.93,143.86,16.308864]
[1764184616166,1.57847773,143.93,143.88,7.54485475]
[1764184616362,3.3,143.92,143.88,7.54485475]
[1764184616592,3.3,143.92,143.89,8.20485475]
[1764184616790,3.3,143.92,143.89,0.66]
[1764184617089,11.55485475,143.92,143.87,7.54485475]
[1764184617298,19.37173733,143.92,143.87,7.54485475]
[1764184617496,19.37173733,143.92,143.88,0.66]
[1764184618067,12.42339282,143.92,143.88,0.66]
[1764184618270,3.3,143.92,143.88,8.20485475]
[1764184618469,10.95844056,143.92,143.88,8.20485475]
[1764184618703,10.95844056,143.92,143.88,0.66]
[1764184620087,4.01,143.92,143.88,7.61021051]
[1764184620289,0.2,143.92,143.91,7.54485475]
[1764184620490,0.2,143.92,143.89,0.66]
[1764184620491,3.3,143.92,143.89,0.66]
[1764184620694,3.3,143.92,143.9,7.54485475]
[1764184621214,3.3,143.92,143.89,0.66]
[1764184621408,3.3,143.92,143.89,15.15458962]
[1764184622013,3.3,143.92,143.9,0.66]
[1764184622999,0.2,143.92,143.9,0.66]
[1764184623192,3.1,143.91,143.9,0.66]
[1764184623398,3.1,143.91,143.9,7.60927032]
[1764184623711,3.1,143.91,143.9,15.15412507]
[1764184624615,3.1,143.91,143.9,76.65412507]
[1764184625107,0.2,143.92,143.9,76.65412507]
[1764184625108,3.3,143.92,143.9,76.65412507]
[1764184625310,0.2,143.92,143.91,8.20485475]
[1764184625703,3.1,143.93,143.91,69.70485475]
[1764184626011,3.1,143.93,143.92,24.51371875]
[1764184626317,3.1,143.96,143.92,86.01371875]
[1764184626497,3.1,143.96,143.95,7.54485475]
[1764184626700,0.2,143.99,143.95,69.04485475]
[1764184626904,0.2,143.99,143.96,7.54485475]
[1764184627102,3.1,143.98,143.97,6.9458915]
[1764184627305,3.1,143.98,143.97,7.6458915]
[1764184627505,0.2,143.99,143.97,7.6458915]
[1764184627701,3.1,143.98,143.97,14.49074625]
[1764184627924,0.2,143.99,143.97,14.49074625]
[1764184628221,3.1,143.98,143.97,14.49074625]
[1764184628716,3.3,143.99,143.97,75.99074625]
[1764184628925,3.3,143.99,143.98,8.24485475]
[1764184629106,0.2,143.99,143.98,76.69026383]
[1764184629308,1e-08,143.99,143.98,31.49912783]
[1764184629510,1e-08,143.99,143.98,15.19026383]
[1764184632798,1e-08,143.99,143.98,24.28453189]
[1764184633220,0.2,144.05,144.01,16.308864]
[1764184633415,0.2,144.05,144.04,7.54485475]
[1764184633624,0.2,144.05,144.04,23.85371875]
[1764184633798,0.2,144.05,144.04,24.55371875]
[1764184635433,0.2,144.05,144.04,31.49623471]
[1764184637508,0.2,144.05,144.04,16.308864]
[1764184638015,0.2,144.05,144.04,30.79623471]
[1764184638212,0.2,144.05,144.04,31.45623471]
[1764184638430,0.2,144.05,144.04,92.95623471]
[1764184638915,0.2,144.05,144.04,76.64737071]
[1764184639117,0.2,144.09,144.07,16.308864]
[1764184639313,0.2,144.09,144.08,14.48544331]
[1764184639511,0.2,144.09,144.08,15.14544331]
[1764184640342,0.2,144.13,144.11,16.308864]
[1764184640633,0.2,144.13,144.12,8.20485475]
[1764184640808,0.2,144.13,144.12,24.51371875]
[1764184641410,0.2,144.13,144.12,31.45238097]
[1764184643834,0.2,144.13,144.12,23.90752622]
[1764184644019,0.2,144.13,144.12,31.45238097]
[1764184647819,0.86,144.13,144.09,0.35012658]
[1764184648024,0.66,144.12,144.09,7.54485475]
[1764184648430,0.66,144.12,144.09,14.48480972]
[1764184648632,0.66,144.12,144.1,11.62749636]
[1764184649714,0.66,144.12,144.09,11.62749636]
[1764184650037,0.66,144.12,144.08,34.87687358]
[1764184650533,3.28,144.13,144.09,11.62749636]
[1764184650917,0.66,144.12,144.09,11.62749636]
[1764184652243,0.2,144.13,144.12,23.24752622]
[1764184652455,0.2,144.13,144.12,34.87502258]
[1764184652770,0.2,144.13,144.12,35.53502258]
[1764184653746,0.2,144.13,144.12,23.24752622]
[1764184653922,0.2,144.13,144.12,34.87502258]
[1764184654627,0.2,144.13,144.12,23.24752622]
[1764184655737,0.2,144.13,144.12,34.87502258]
[1764184655944,0.2,144.13,144.12,23.24752622]
[1764184657154,0.86,144.13,144.12,23.24752622]
[1764184657838,0.86,144.13,144.11,6.93893861]
[1764184658038,0.86,144.13,144.11,23.24780261]
[1764184658646,0.2,144.13,144.11,23.24780261]
[1764184658847,0.2,144.13,144.12,12.28749636]
[1764184659334,0.2,144.13,144.12,11.62749636]
[1764184660060,0.2,144.13,144.12,12.28749636]
[1764184660277,0.86,144.2,144.17,11.62749636]
[1764184660668,0.66,144.19,144.17,11.62749636]
[1764184660836,0.2,144.2,144.18,11.62749636]
[1764184661041,0.2,144.2,144.19,11.62749636]
[1764184661340,0.2,144.2,144.19,12.28749636]
[1764184662153,0.2,144.22,144.21,27.93636036]
[1764184662357,0.2,144.22,144.21,28.59636036]
[1764184662960,0.2,144.22,144.21,35.53069223]
[1764184663159,0.2,144.22,144.21,23.24319587]
[1764184663369,0.2,144.22,144.21,34.87069223]
[1764184663555,0.2,144.22,144.21,35.53069223]
[1764184664863,0.2,144.22,144.21,35.51069223]
[1764184666062,0.2,144.22,144.21,34.85069223]
[1764184667050,0.2,144.22,144.21,34.83069223]
[1764184667254,0.2,144.22,144.21,35.55069223]
[1764184668270,0.2,144.22,144.19,17.33716867]
[1764184668271,0.88,144.22,144.19,6.93494302]
[1764184668874,0.88,144.22,144.14,6.93769945]
[1764184668875,3.76,144.21,144.14,6.93769945]
[1764184669073,11.62749636,144.18,144.15,16.308864]
[1764184669265,11.62749636,144.18,144.14,24.28194809]
[1764184669469,0.68,144.18,144.15,16.308864]
[1764184669654,0.68,144.18,144.14,24.28194809]
[1764184669854,0.68,144.18,144.15,16.308864]
[1764184670053,0.68,144.18,144.14,24.28194809]
[1764184670455,0.68,144.18,144.15,16.308864]
[1764184670955,12.30749636,144.18,144.15,16.308864]
[1764184671357,3.08,144.18,144.16,6.93673695]
[1764184671567,3.08,144.19,144.16,36.6260757]
[1764184671984,0.2,144.22,144.16,35.9060757]
[1764184672177,3.08,144.21,144.17,12.34749636]
[1764184672376,3.08,144.21,144.16,24.27857934]
[1764184672686,0.68,144.2,144.16,24.99857934]
[1764184673101,0.68,144.2,144.16,24.27857934]
[1764184673798,12.30749636,144.2,144.16,24.27857934]
[1764184674085,0.68,144.2,144.16,24.27857934]
[1764184674293,0.68,144.19,144.18,16.308864]
[1764184674883,3.08,144.2,144.18,16.308864]
[1764184675083,3.76,144.2,144.18,16.308864]
[1764184675492,0.68,144.19,144.18,16.308864]
[1764184675682,3.76,144.2,144.18,16.308864]
[1764184675991,3.76,144.2,144.19,6.9352937]
[1764184679783,3.08,144.21,144.19,7.6552937]
[1764184679978,3.76,144.21,144.19,6.9352937]
[1764184680179,3.08,144.21,144.19,6.9352937]
[1764184680393,3.76,144.21,144.19,24.27352797]
[1764184681794,3.08,144.21,144.19,24.99352797]
[1764184681994,3.08,144.21,144.2,7.65481276]
[1764184682195,0.2,144.22,144.2,19.28230912]
[1764184682497,0.2,144.22,144.21,12.34749636]
[1764184682897,0.2,144.28,144.23,16.308864]
[1764184683088,3.28,144.28,144.26,27.93636036]
[1764184683604,3.96,144.28,144.26,16.308864]
[1764184683896,0.68,144.27,144.22,12.34749636]
[1764184684078,0.68,144.27,144.24,6.93288962]
[1764184684481,12.30749636,144.27,144.24,6.93288962]
[1764184684688,12.30749636,144.27,144.23,23.24203316]
[1764184684883,0.68,144.26,144.23,23.24203316]
[1764184685802,11.62749636,144.24,144.19,11.62749636]